bitfinex-derivatives/quotes_BNBF0:USTF0_20250309
["timestamp","ask_amount","ask_price","bid_price","bid_amount"]
[1741516275842,0.31625353,581.65,581.04,1.96524333]
[1741516276042,0.31625353,581.66,581.04,1.96524333]
[1741516276243,0.31625353,581.65,581.04,1.96524333]
[1741516276444,0.31625353,581.64,581.04,1.96524333]
[1741516278350,0.668,581.65,581.04,1.96524333]
[1741516279647,0.29941408,581.64,581.04,1.96524333]
[1741516281342,0.668,581.65,581.04,1.96524333]
[1741516281740,0.29941408,581.63,581.04,1.96524333]
[1741516284453,0.668,581.65,581.04,1.96524333]
[1741516285754,0.29939862,581.64,581.04,1.96524333]
[1741516287352,0.668,581.65,581.04,1.96524333]
[1741516288554,0.29938317,581.64,581.04,1.96524333]
[1741516292955,0.31624641,581.63,581.04,1.96524333]
[1741516293651,0.29942825,581.62,581.04,1.96524333]
[1741516293851,0.29942825,581.62,581.04,1.341]
[1741516295354,0.3162564,581.61,581.04,1.341]
[1741516295858,0.29942825,581.62,581.04,1.341]
[1741516296256,0.31625961,581.61,581.04,1.341]
[1741516296452,0.668,581.65,581.04,1.341]
[1741516296656,0.29943082,581.6,581.04,1.341]
[1741516298057,0.96627343,581.59,581.04,2.039]
[1741516298257,0.65,581.59,581.04,2.039]
[1741516302561,0.668,581.58,581.04,2.039]
[1741516304568,0.3162808,581.57,581.04,2.039]
[1741516305162,0.668,581.58,581.04,2.039]
[1741516305562,0.31628197,581.57,581.04,2.039]
[1741516306767,0.29945659,581.56,581.04,2.039]
[1741516308163,0.31627366,581.55,581.04,2.039]
[1741516309065,0.29945659,581.56,581.04,2.039]
[1741516310172,0.31627367,581.55,581.04,2.039]
[1741516310573,0.29945659,581.56,581.04,2.039]
[1741516311472,0.668,581.58,581.04,2.039]
[1741516311674,0.31624738,581.57,581.04,2.039]
[1741516312672,0.29944113,581.56,581.04,2.039]
[1741516316573,0.31627293,581.55,581.04,2.039]
[1741516317672,0.31627293,581.57,581.04,2.039]
[1741516317878,0.668,581.58,581.04,2.039]
[1741516318677,0.29944886,581.57,581.04,2.039]
[1741516320082,1.00444886,581.57,581.04,2.039]
[1741516332387,0.705,581.57,581.04,2.039]
[1741516335791,1.374,581.57,581.04,2.039]
[1741516345199,1.374,581.57,581.05,0.2896617]
[1741516345899,1.374,581.57,581.06,0.2896617]
[1741516346099,1.374,581.57,580.81,0.2896617]
[1741516346296,1.374,581.57,580.82,0.63400245]
[1741516346501,1.374,581.57,580.83,0.63399653]
[1741516346695,1.374,581.57,580.84,0.6339906]
[1741516346899,1.374,581.57,580.85,0.63398467]
[1741516347099,1.374,581.57,580.86,0.63397874]
[1741516347302,1.374,581.57,580.87,0.2896617]
[1741516348802,1.374,581.57,580.88,2.658]
[1741516349002,1.374,581.57,580.89,0.2896617]
[1741516349802,1.374,581.57,580.88,2.658]
[1741516350104,1.374,581.57,580.89,0.28966499]
[1741516350702,1.374,581.57,580.9,0.28966335]
[1741516350901,1.374,581.57,580.88,2.658]
[1741516350902,1.374,581.57,580.89,0.28966335]
[1741516351204,1.374,581.57,580.9,0.63395668]
[1741516351398,1.374,581.57,580.91,0.28966335]
[1741516351603,1.374,581.57,580.92,0.34428148]
[1741516352005,1.374,581.57,580.93,0.28962264]
[1741516352201,1.374,581.57,580.94,0.34426963]
[1741516352508,1.374,581.57,580.95,0.28962264]
[1741516352706,1.374,581.57,580.96,0.34425778]
[1741516352907,1.374,581.57,580.97,0.28962264]
[1741516353106,1.374,581.57,580.98,0.34424592]
[1741516353306,1.374,581.57,580.99,0.28962264]
[1741516353506,1.374,581.57,581.0,0.34423407]
[1741516353708,1.374,581.57,581.01,0.28962264]
[1741516354810,1.374,581.57,581.02,0.34422222]
[1741516355109,1.374,581.57,581.03,0.28962264]
[1741516355304,1.374,581.57,581.04,0.34421038]
[1741516355609,1.374,581.57,581.05,0.28962264]
[1741516355808,1.374,581.57,581.06,0.34419853]
[1741516356009,1.374,581.57,581.07,0.28962264]
[1741516356201,1.374,581.57,581.08,0.34418668]
[1741516356406,1.374,581.57,581.09,0.28962264]
[1741516356603,1.374,581.57,581.1,0.34417484]
[1741516356806,1.374,581.57,581.11,0.28962264]
[1741516357009,1.374,581.57,581.12,0.34416299]
[1741516357412,1.374,581.57,581.13,0.28953878]
[1741516357713,1.374,581.57,581.14,0.34415115]
[1741516357913,1.374,581.57,581.15,0.28953878]
[1741516359016,1.374,581.57,581.16,0.3441393]
[1741516359214,1.374,581.57,581.17,0.28953878]
[1741516359616,1.374,581.57,581.17,0.63367216]
[1741516359816,1.374,581.57,581.18,0.28953878]
[1741516360312,1.374,581.57,581.19,0.34412154]
[1741516360508,1.374,581.57,581.2,0.28953878]
[1741516360714,1.374,581.57,581.21,0.3441097]
[1741516360913,1.374,581.57,581.22,0.28953878]
[1741516364418,1.374,581.57,581.21,0.3441097]
[1741516364619,1.374,581.57,581.22,0.28950814]
[1741516365513,1.374,581.57,581.23,0.34409786]
[1741516365716,1.374,581.57,581.24,0.28950814]
[1741516368113,1.374,581.57,581.23,0.34409786]
[1741516368415,1.374,581.57,581.24,0.28947852]
[1741516369220,1.374,581.57,581.25,0.34408602]
[1741516369419,1.374,581.57,581.26,0.28947852]
[1741516369621,1.374,581.57,581.27,0.34407418]
[1741516369815,1.374,581.57,581.28,0.28947852]
[1741516370018,1.374,581.57,581.29,0.63349407]
[1741516370213,1.374,581.57,581.3,0.63348815]
[1741516370421,0.29920041,582.26,581.31,0.63348223]
[1741516370620,0.29920041,582.26,581.32,0.28943173]
[1741516371421,1.27865714,583.06,581.32,0.28943173]
[1741516371617,0.34302963,583.04,581.33,0.34403866]
[1741516371821,0.29898962,582.36,581.34,0.28943173]
[1741516372020,0.34302963,583.04,581.35,0.34402683]
[1741516372216,0.31577845,583.03,581.36,0.28943173]
[1741516372421,0.31577845,583.02,581.36,0.28943173]
[1741516372619,0.34305317,583.0,581.37,0.34401499]
[1741516372821,0.31577845,582.99,581.38,0.28943173]
[1741516373018,0.31577845,582.98,581.39,0.34400316]
[1741516373222,0.65884927,582.97,581.4,0.28943173]
[1741516373523,1.27865714,582.87,581.41,0.34399133]
[1741516373721,0.34314146,582.85,581.42,0.28941237]
[1741516373924,0.31577477,582.84,581.42,0.28941237]
[1741516374125,0.31577477,582.83,581.42,0.28941237]
[1741516374326,0.65893389,582.82,581.42,0.28941237]
[1741516374529,0.65893978,582.81,581.42,0.28941237]
[1741516374822,0.65894566,582.8,581.42,0.99341237]
[1741516375027,0.65895155,582.79,581.43,0.28941237]
[1741516375228,0.31577477,582.78,581.43,0.28941237]
[1741516375428,0.31577477,582.77,581.43,0.28941237]
[1741516375723,0.31577477,582.76,581.43,0.28941237]
[1741516375928,0.31577477,582.78,581.43,0.28941237]
[1741516376631,0.34318856,582.77,581.43,0.28941237]
[1741516376830,0.31577477,582.76,581.43,0.28941237]
[1741516377027,0.34318856,582.77,581.42,0.704]
[1741516377226,0.34318856,582.77,581.43,0.28941395]
[1741516377227,0.3157764,582.76,581.43,0.28941395]
[1741516377731,0.29899733,582.75,581.43,0.28941395]
[1741516377931,0.65898263,582.74,581.43,0.28941395]
[1741516378134,0.3157764,582.73,581.43,1.06241395]
[1741516378331,0.3157764,582.73,581.44,0.28941395]
[1741516378827,0.34321801,582.72,581.44,0.28941395]
[1741516379034,0.31578336,582.71,581.45,0.28942087]
[1741516379234,0.31578336,582.71,581.44,0.28942087]
[1741516379531,0.31578336,582.71,581.45,0.28942087]
[1741516379726,0.31578336,582.71,581.44,0.28942087]
[1741516379931,0.31578336,582.71,581.45,0.28942087]
[1741516380132,0.31578336,582.71,581.44,0.28942087]
[1741516380332,0.31578336,582.71,581.43,0.773]
[1741516380835,0.31583399,582.7,581.43,0.773]
[1741516381035,0.31583399,582.71,581.43,1.576]
[1741516381335,0.31583399,582.7,581.43,1.576]
[1741516381633,0.31583399,582.69,581.43,1.576]
[1741516381934,0.31583399,582.71,581.43,1.576]
[1741516382133,0.34324157,582.68,581.43,1.576]
[1741516382534,0.31583399,582.67,581.43,1.576]
[1741516383234,0.34325335,582.66,581.43,1.576]
[1741516383434,0.31583399,582.65,581.43,1.576]
[1741516383629,0.34326513,582.64,581.43,1.576]
[1741516383830,0.31583399,582.63,581.43,1.576]
[1741516384033,0.34327692,582.62,581.43,1.576]
[1741516384335,0.31583399,582.61,581.43,1.576]
[1741516384530,0.3432887,582.6,581.43,1.576]
[1741516384731,0.31583399,582.59,581.43,1.576]
[1741516384931,0.3432887,582.6,581.43,1.576]
[1741516385130,0.31582421,582.59,581.43,1.576]
[1741516386637,0.34330049,582.58,581.43,1.576]
[1741516386835,0.31582421,582.57,581.43,1.576]
[1741516387031,0.34331227,582.56,581.43,1.576]
[1741516387436,0.31582421,582.55,581.43,1.576]
[1741516387736,0.34332406,582.54,581.43,1.576]
[1741516387937,0.31582421,582.53,581.43,1.576]
[1741516388136,0.65917764,582.52,581.43,1.576]
[1741516388336,0.65918353,582.51,581.43,1.576]
[1741516388535,0.65918942,582.5,581.43,1.576]
[1741516388837,0.65919532,582.49,581.43,1.576]
[1741516389132,0.65920121,582.48,581.43,1.576]
[1741516389337,0.65920711,582.47,581.43,1.576]
[1741516389537,0.31584179,582.46,581.43,1.576]
[1741516390639,0.31584179,582.46,581.44,0.28947565]
[1741516391438,0.64244231,582.47,581.43,1.576]
[1741516391739,0.31583701,582.46,581.44,0.28947386]
[1741516393746,0.668,582.45,581.44,0.28947386]
[1741516393942,0.31583701,582.44,581.44,0.28947386]
[1741516394235,0.31583701,582.44,581.43,0.803]
[1741516395142,0.668,582.45,581.43,0.803]
[1741516395441,0.668,582.45,581.43,1.78]
[1741516396642,0.29908084,582.44,581.43,1.78]
[1741516397743,0.315834,582.43,581.43,1.78]
[1741516398037,0.29908084,582.44,581.44,0.28943662]
[1741516398439,0.668,582.45,581.44,0.28943662]
[1741516399743,0.29905771,582.44,581.44,0.28943662]
[1741516400141,0.29905771,582.44,581.45,0.28943593]
[1741516400339,0.29905771,582.44,581.46,0.28943593]
[1741516400537,0.29905771,582.44,581.44,0.28943593]
[1741516400738,0.29905771,582.44,581.45,0.28943593]
[1741516400943,0.29905771,582.44,581.46,0.28943593]
[1741516401140,0.29905771,582.44,581.44,0.28943593]
[1741516401340,0.29905771,582.44,581.47,0.83]
[1741516401544,0.29905771,582.44,581.48,0.28943593]
[1741516401940,0.29905771,582.44,581.47,0.83]
[1741516402146,0.315805,582.43,581.48,0.28944234]
[1741516402846,0.315805,582.43,581.47,0.83]
[1741516403447,0.29905771,582.44,581.47,0.83]
[1741516403648,0.31584647,582.43,581.47,0.83]
[1741516405051,0.3433948,582.42,581.47,0.83]
[1741516405246,0.31584647,582.41,581.47,0.83]
[1741516405446,0.29905771,582.44,581.47,0.83]
[1741516405447,0.34340659,582.4,581.47,0.83]
[1741516405648,0.31587584,582.39,581.47,0.83]
[1741516405852,0.34341838,582.38,581.47,0.83]
[1741516406153,0.31587584,582.37,581.47,0.83]
[1741516406550,0.65930012,582.37,581.47,0.83]
[1741516406751,0.31587584,582.36,581.47,0.83]
[1741516407253,0.34342428,582.37,581.47,0.83]
[1741516407548,0.31588707,582.36,581.47,0.83]
[1741516408154,0.34343607,582.35,581.47,0.83]
[1741516408356,0.31588707,582.34,581.47,0.83]
[1741516408857,0.668,582.33,581.47,0.83]
[1741516409055,0.34345377,582.32,581.47,0.83]
[1741516409254,0.31588707,582.31,581.47,0.83]
[1741516409653,0.34346556,582.3,581.47,0.83]
[1741516409854,0.31588707,582.29,581.47,0.83]
[1741516410856,0.34347736,582.28,581.47,0.83]
[1741516411058,0.31593196,582.27,581.47,0.83]
[1741516411258,0.34348916,582.26,581.47,0.83]
[1741516411458,0.31593196,582.25,581.47,0.83]
[1741516414360,0.31593196,582.25,581.48,0.852]
[1741516414656,0.29912712,582.24,581.48,0.852]
[1741516420669,0.29912712,582.24,581.49,0.28948198]
[1741516422568,0.34348916,582.26,581.48,0.852]
[1741516422770,0.3158799,582.25,581.48,0.852]
[1741516423769,0.29912454,582.24,581.48,0.852]
[1741516424065,0.3158799,582.23,581.48,0.852]
[1741516425968,0.29912454,582.24,581.48,0.852]
[1741516427573,0.31587262,582.23,581.49,0.759]
[1741516428573,0.34348916,582.26,581.49,0.759]
[1741516428766,0.31587826,582.25,581.49,0.759]
[1741516428971,0.31587826,582.24,581.49,0.759]
[1741516429273,0.34348916,582.26,581.49,0.759]
[1741516429669,0.29912326,582.23,581.49,0.759]
[1741516430074,0.829,582.22,581.49,0.759]
[1741516431071,0.668,582.21,581.49,0.759]
[1741516432776,0.29912969,582.2,581.49,0.759]
[1741516434482,0.668,582.21,581.49,0.759]
[1741516434675,0.29912969,582.19,581.49,0.759]
[1741516437476,0.668,582.21,581.49,0.759]
[1741516437679,0.29913483,582.18,581.49,0.759]
[1741516439482,0.31591165,582.17,581.49,0.759]
[1741516439881,0.29913483,582.18,581.49,0.759]
[1741516440483,0.668,582.21,581.49,0.759]
[1741516440684,0.29918112,582.17,581.49,0.759]
[1741516440883,0.31597499,582.16,581.49,0.759]
[1741516441183,0.31599023,582.15,581.49,0.759]
[1741516441385,0.31599023,582.16,581.49,0.759]
[1741516441583,0.31599023,582.15,581.49,0.759]
[1741516441783,0.31599023,582.16,581.49,0.759]
[1741516441985,0.31599023,582.15,581.49,0.759]
[1741516442185,0.29918112,582.17,581.49,0.759]
[1741516442186,0.31599023,582.16,581.49,0.759]
[1741516443482,0.65953839,582.16,581.5,0.628]
[1741516443686,0.31599023,582.15,581.5,0.628]
[1741516444689,0.3159862,582.14,581.5,0.628]
[1741516444886,0.3159862,582.13,581.5,0.628]
[1741516445088,0.3159862,582.12,581.5,0.628]
[1741516445288,0.34354816,582.16,581.5,0.628]
[1741516445587,0.31598919,582.15,581.5,0.628]
[1741516446388,0.31598919,582.14,581.5,0.628]
[1741516446589,0.31598919,582.15,581.51,0.611]
[1741516446782,0.31598919,582.14,581.51,0.611]
[1741516446986,0.34354816,582.16,581.51,0.611]
[1741516446987,0.31598919,582.13,581.51,0.611]
[1741516447189,0.34354816,582.16,581.51,0.611]
[1741516447385,0.31599356,582.15,581.51,0.611]
[1741516450700,0.29918755,582.14,581.51,0.611]
[1741516451200,0.31594676,582.13,581.51,0.611]
[1741516451703,0.31595119,582.12,581.51,0.611]
[1741516451894,0.31595119,582.13,581.51,0.611]
[1741516452894,0.31595119,582.12,581.51,0.611]
[1741516453099,0.31595119,582.11,581.51,0.611]
[1741516453299,0.31595731,582.1,581.51,0.611]
[1741516453494,0.31595731,582.15,581.51,0.611]
[1741516453699,0.29915669,582.1,581.51,0.611]
[1741516454600,0.29915669,582.1,581.52,0.597]
[1741516455500,0.668,582.09,581.52,0.597]
[1741516456803,0.29915797,582.08,581.52,0.597]
[1741516458304,1.08115797,582.08,581.52,0.597]
[1741516458501,0.782,582.08,581.52,0.597]
[1741516459501,1.0811464,582.08,581.52,0.597]
[1741516461597,0.782,582.08,581.52,0.597]
[1741516468805,0.29915026,582.07,581.52,1.373]
[1741516470402,0.782,582.08,581.52,1.373]
[1741516471709,0.29914769,582.07,581.52,1.373]
[1741516473409,0.782,582.08,581.52,1.373]
[1741516474803,0.29914769,582.07,581.52,1.373]
[1741516475710,0.96714769,582.07,581.52,1.373]
[1741516479412,1.299,582.07,581.52,1.373]
[1741516480714,0.29916955,582.06,581.52,1.373]
[1741516482522,1.299,582.07,581.52,1.373]
[1741516483626,0.29918498,582.06,581.52,1.373]
[1741516485625,1.299,582.07,581.52,1.373]
[1741516486627,0.29918498,582.06,581.52,1.373]
[1741516488628,1.299,582.07,581.52,1.373]
[1741516489628,0.29919012,582.06,581.52,1.373]
[1741516491533,1.299,582.07,581.52,1.373]
[1741516491726,0.31603133,582.05,581.52,1.373]
[1741516491933,0.29920299,582.06,581.52,1.373]
[1741516492128,0.31603267,582.05,581.52,1.373]
[1741516493534,0.31606527,582.04,581.52,1.373]
[1741516493733,0.31606527,582.05,581.52,1.373]
[1741516493940,0.31606527,582.04,581.52,1.373]
[1741516494141,0.31606527,582.05,581.52,1.373]
[1741516494335,0.31606527,582.04,581.52,1.373]
[1741516494533,0.31606527,582.03,581.52,1.373]
[1741516494737,0.29922485,582.03,581.52,1.373]
[1741516494939,0.31606527,582.02,581.52,1.373]
[1741516497843,0.31606527,582.01,581.52,1.373]
[1741516498037,0.31606527,582.06,581.52,1.373]
[1741516498241,0.31606527,582.05,581.52,1.373]
[1741516498438,1.299,582.07,581.52,1.373]
[1741516498439,0.31606527,582.06,581.52,1.373]
[1741516498638,0.29921328,582.04,581.52,1.373]
[1741516498842,0.31606527,582.03,581.52,1.373]
[1741516500543,0.3436308,582.02,581.52,1.373]
[1741516500744,0.31606527,582.01,581.52,1.373]
[1741516500939,0.65970197,582.01,581.52,2.231]
[1741516501138,0.31606527,582.0,581.52,2.231]
[1741516501846,0.29924415,581.99,581.52,2.231]
[1741516502248,0.3160671,581.98,581.52,2.231]
[1741516503647,0.3160671,582.0,581.52,2.231]
[1741516503946,0.632,581.97,581.52,2.231]
[1741516504157,0.3160671,581.96,581.52,2.231]
[1741516504353,0.61528809,581.96,581.52,2.231]
[1741516504653,0.3160671,581.95,581.52,2.231]
[1741516504850,0.29922099,581.96,581.52,2.231]
[1741516505151,0.31604976,581.95,581.52,2.231]
[1741516505849,0.29922099,581.96,581.52,2.231]
[1741516506353,0.31604745,581.95,581.52,2.231]
[1741516506753,0.31604745,581.94,581.52,2.231]
[1741516506953,0.29922228,581.94,581.52,2.231]
[1741516507550,1.07322228,581.94,581.52,2.231]
[1741516509649,0.774,581.94,581.52,2.231]
[1741516509955,0.29922485,581.93,581.52,2.231]
[1741516515659,0.774,581.94,581.52,2.231]
[1741516516855,0.29920684,581.93,581.52,2.231]
[1741516519058,0.668,581.92,581.52,2.231]
[1741516522671,0.29921713,581.91,581.52,2.231]
[1741516524466,0.668,581.92,581.52,2.231]
[1741516525674,0.29924801,581.91,581.52,2.231]
[1741516527675,0.668,581.92,581.52,2.231]
[1741516528778,0.29924801,581.91,581.52,2.231]
[1741516530578,0.668,581.92,581.52,2.231]
[1741516531677,0.29924801,581.91,581.52,2.231]
[1741516533476,0.668,581.92,581.52,2.231]
[1741516533674,0.3161122,581.91,581.52,2.231]
[1741516534575,0.668,581.92,581.52,2.231]
[1741516534875,0.29925444,581.9,581.52,2.231]
[1741516536483,0.668,581.92,581.52,2.231]
[1741516536679,0.34369576,581.91,581.52,2.231]
[1741516537277,0.29928147,581.9,581.52,2.231]
[1741516537877,0.31612978,581.89,581.52,2.231]
[1741516538283,0.29928147,581.9,581.52,2.231]
[1741516538478,0.31616957,581.88,581.52,2.231]
[1741516538683,0.31616957,581.87,581.52,2.231]
[1741516538982,0.65989486,581.86,581.52,2.231]
[1741516539186,0.31616957,581.85,581.52,2.231]
[1741516539385,0.3437312,581.85,581.52,2.231]
[1741516539686,0.668,581.84,581.52,2.231]
[1741516539886,0.96729948,581.84,581.52,2.231]
[1741516542486,0.31616461,581.83,581.52,2.231]
[1741516542987,0.96729948,581.84,581.52,2.231]
[1741516543188,0.31616651,581.83,581.52,2.231]
[1741516543388,0.613,581.83,581.52,2.231]
[1741516545489,0.31617536,581.82,581.52,2.231]
[1741516545690,0.61548385,581.82,581.52,2.231]
[1741516546092,0.31617536,581.81,581.52,2.231]
[1741516546488,0.31617536,581.81,580.19,2.60710384]
[1741516546689,0.31617536,581.81,580.2,0.28983407]
[1741516546984,0.31617536,581.81,580.22,0.34469683]
[1741516547188,0.34376074,581.8,580.23,0.28983407]
[1741516547390,0.34376074,581.8,580.25,0.34467901]
[1741516547589,0.31617536,581.79,580.26,0.28983407]
[1741516547789,0.34377256,581.78,580.28,0.34466119]
[1741516547990,0.31617536,581.77,580.29,0.28983407]
[1741516548186,0.34378437,581.76,580.31,0.34464338]
[1741516548590,0.31617536,581.75,580.32,0.28983407]
[1741516548787,0.34379619,581.74,580.33,0.3446315]
[1741516548991,0.31617536,581.73,580.34,0.28983407]
[1741516549194,0.31617536,581.73,580.35,0.34461962]
[1741516549490,0.65997746,581.73,580.36,0.28983407]
[1741516549795,0.31617536,581.72,580.37,0.28983407]
[1741516550096,0.31617536,581.72,580.38,0.63443588]
[1741516550396,0.31617536,581.72,580.4,0.34458993]
[1741516550694,0.31617536,581.72,580.41,0.28983407]
[1741516550889,0.31621356,581.71,580.42,0.63442331]
[1741516551088,0.31621356,581.72,580.43,0.63441737]
[1741516551289,0.31621356,581.7,580.43,0.63441737]
[1741516551595,0.31621356,581.69,580.44,0.63441144]
[1741516551786,0.31621356,581.72,580.45,0.28984525]
[1741516551992,0.3438021,581.73,580.45,0.28984525]
[1741516551993,0.31621356,581.71,580.45,0.6344055]
[1741516552189,0.31621356,581.72,580.46,0.28984525]
[1741516552798,0.29949009,581.71,580.46,0.28984525]
[1741516553094,0.31621356,581.7,580.46,0.28984525]
[1741516553292,0.31621356,581.7,580.47,0.34454838]
[1741516553589,0.31621356,581.7,580.48,0.28984525]
[1741516554795,0.31621356,581.72,580.48,0.28984525]
[1741516554997,0.31621356,581.71,580.48,0.28984525]
[1741516555199,0.3438021,581.73,580.48,0.28984525]
[1741516555200,0.31621356,581.72,580.48,0.28984525]
[1741516555396,0.64330917,581.71,580.48,0.28984525]
[1741516555595,0.66003339,581.7,580.48,0.28984525]
[1741516555795,0.31621356,581.69,580.48,0.28984525]
[1741516557000,1.12321356,581.69,580.48,0.28984525]
[1741516557299,0.66004522,581.68,580.48,0.28984525]
[1741516557501,0.31621356,581.67,580.48,0.28984525]
[1741516558101,0.34383166,581.68,580.47,0.34454838]
[1741516558402,0.34383166,581.68,580.48,0.28990003]
[1741516558403,0.316269,581.67,580.48,0.28990003]
[1741516560997,0.29950169,581.66,580.48,0.28990003]
[1741516561604,0.29950169,581.66,580.49,0.34453651]
[1741516561804,0.29950169,581.66,580.5,0.28990003]
[1741516563501,0.34383166,581.68,580.5,0.28990003]
[1741516563703,0.29947076,581.65,580.5,0.28990003]
[1741516564306,0.29947076,581.65,580.51,0.28990003]
[1741516564500,0.29947076,581.65,580.52,0.28990003]
[1741516564806,0.29947076,581.65,580.49,0.34453651]
[1741516564807,0.29947076,581.65,580.53,0.28990003]
[1741516565007,0.29947076,581.65,580.54,0.28990003]
[1741516565308,0.29947076,581.65,580.55,0.28990003]
[1741516565609,0.29947076,581.65,580.56,0.28990003]
[1741516565806,0.29947076,581.65,580.5,0.28990003]
[1741516566006,0.29947076,581.65,580.51,0.28990003]
[1741516566206,0.29947076,581.65,580.52,0.28990003]
[1741516566406,0.34383166,581.68,580.53,0.28990003]
[1741516566604,0.34383166,581.68,580.54,0.28990003]
[1741516566804,0.29946045,581.64,580.55,0.28990003]
[1741516567006,0.29946045,581.64,580.56,0.28990003]
[1741516567207,0.29946045,581.64,580.5,0.28990003]
[1741516567407,0.29946045,581.64,580.51,0.28990003]
[1741516567603,0.29946045,581.64,580.52,0.28990003]
[1741516567803,0.29946045,581.64,580.5,0.28990003]
[1741516568605,0.29946045,581.64,580.51,0.28981558]
[1741516568805,0.29946045,581.64,580.5,0.28981558]
[1741516569011,0.29946045,581.64,580.51,0.28981558]
[1741516569211,0.29946045,581.64,580.5,0.28981558]
[1741516569410,0.29946045,581.64,580.51,0.28981558]
[1741516569606,0.29946045,581.64,580.52,0.63433428]
[1741516569811,0.29946045,581.64,580.53,0.63432835]
[1741516570105,0.29946045,581.64,580.54,0.63432241]
[1741516570312,0.29946045,581.64,580.55,0.63431648]
[1741516570511,0.29946045,581.64,580.56,0.63431055]
[1741516570713,0.29946045,581.64,580.57,0.63430461]
[1741516570911,0.29946045,581.64,580.58,0.63429868]
[1741516571110,0.29946045,581.64,580.59,0.63429274]
[1741516571311,0.29946045,581.64,580.6,0.28981558]
[1741516571914,0.29946045,581.64,580.61,0.859]
[1741516572610,0.29946045,581.64,580.62,0.6342804]
[1741516572813,0.29946045,581.64,580.63,0.28982103]
[1741516574717,0.614,581.63,580.63,0.28982103]
[1741516575917,0.29945272,581.62,580.63,0.28982103]
[1741516577119,0.29945272,581.62,580.64,0.3444475]
[1741516577311,0.29945272,581.62,580.65,0.28982103]
[1741516577514,0.29945272,581.62,580.66,0.34443564]
[1741516577914,0.29945272,581.62,580.67,0.28978148]
[1741516578618,0.614,581.63,580.67,0.28978148]
[1741516578815,0.29943726,581.61,580.67,0.28978148]
[1741516581713,0.614,581.63,580.67,0.28978148]
[1741516582919,0.2994553,581.62,580.67,1.17978148]
[1741516583117,0.2994553,581.62,580.67,0.89]
[1741516583315,0.2994553,581.62,580.68,0.28982618]
[1741516584121,0.79,581.61,580.69,0.28982247]
[1741516584419,0.79,581.61,580.68,0.28982247]
[1741516584619,0.79,581.61,580.69,0.28982247]
[1741516584820,0.79,581.61,580.68,0.28982247]
[1741516585013,0.79,581.61,580.67,0.89]
[1741516585318,0.79,581.61,580.68,0.28981675]
[1741516588620,0.31624575,581.6,580.69,0.28987726]
[1741516588921,0.31624575,581.6,580.68,0.28987726]
[1741516589119,0.79,581.61,580.69,0.28987726]
[1741516589619,0.31623135,581.6,580.7,0.28987726]
[1741516589817,0.31623135,581.6,580.68,0.28987726]
[1741516590018,0.31623135,581.6,580.69,0.28987726]
[1741516590213,0.31623135,581.6,580.7,0.28987726]
[1741516590214,0.29948236,581.59,580.7,0.28987726]
[1741516590420,0.29948236,581.59,580.67,0.89]
[1741516590620,0.29948236,581.59,580.68,0.28986183]
[1741516592116,0.29948236,581.59,580.67,0.89]
[1741516592321,0.29948236,581.59,580.68,0.28985294]
[1741516593618,0.79,581.61,580.68,0.28985294]
[1741516594020,0.79,581.61,580.69,0.28984556]
[1741516594227,0.79,581.61,580.68,0.28984556]
[1741516594831,0.29945917,581.6,580.68,0.28984556]
[1741516596432,0.29945917,581.6,580.67,0.89]
[1741516598830,0.669,581.59,580.67,0.89]
[1741516599836,0.2995004,581.58,580.67,0.89]
[1741516601733,0.2995004,581.58,580.68,0.28989187]
[1741516602235,0.2995004,581.58,580.67,0.28989187]
[1741516602638,0.669,581.59,580.67,0.28989187]
[1741516602834,0.669,581.59,580.67,1.18689187]
[1741516603035,0.669,581.59,580.68,0.28989093]
[1741516603837,0.29948494,581.58,580.68,0.28989093]
[1741516604841,0.29948494,581.58,580.69,0.28988384]
[1741516605140,0.29948494,581.58,580.7,0.86188384]
[1741516605436,1.05048494,581.58,580.71,0.28988384]